{"text_format":"3","workbook":"xlsx","n_sheets":2,"sheets":["Ngân sách đám cưới","Chi tiết ngân sách"],"not_rendered":{"charts":1,"images":1,"defined_names":2},"read":"whole","date_system":"1900"}

{"sheet":"Ngân sách đám cưới","index":0,"n_rows":16,"n_cols":16,"rows_kept":16,"merged":[[1,1,1,5]]}
[{"$nulls":6}," "]
[null,"LISHA + DANIEL\nKẾT HÔN"]
[{"$nulls":7}," "]
[]
[null,"DANH MỤC","CHI PHÍ ƯỚC TÍNH","CHI PHÍ THỰC TẾ","CHÊNH LỆCH","% NGÂN SÁCH",{"$nulls":3},"Chưa sắp xếp","Chi phí ước tính","Chi phí thực tế","Chi phí ước tính - Giá trị theo hạng","Xếp hạng","#","Đã sắp xếp"]
[null,{"$f":"P6","v":"Tiếp khách"},{"$f":"VLOOKUP(TBL_Summary[[#This Row],[DANH MỤC]],TBL_RankingData,2,FALSE)","v":{"v":14500,"d":"14,500 ₫"}},{"$f":"IF(VLOOKUP(TBL_Summary[[#This Row],[DANH MỤC]],TBL_RankingData,3,FALSE)=0,\"\",VLOOKUP(TBL_Summary[[#This Row],[DANH MỤC]],TBL_RankingData,3,FALSE))","v":{"v":12800,"d":"12,800 ₫"}},{"$f":"IF(OR(TBL_Summary[[#This Row],[CHI PHÍ ƯỚC TÍNH]]=\"\",TBL_Summary[[#This Row],[CHI PHÍ THỰC TẾ]]=\"\"),\"\",TBL_Summary[[#This Row],[CHI PHÍ ƯỚC TÍNH]]-TBL_Summary[[#This Row],[CHI PHÍ THỰC TẾ]])","v":{"v":1700,"d":"1,700 ₫"}},{"$f":"TBL_Summary[[#This Row],[CHI PHÍ ƯỚC TÍNH]]/SUM(TBL_Summary[CHI PHÍ ƯỚC TÍNH])","v":{"v":0.48739495798319327,"d":"48.7%"}},{"$nulls":3},"Tiếp khách",{"$f":"TBL_Reception[[#Totals],[ƯỚC TÍNH]]","v":14500},{"$f":"TBL_Reception[[#Totals],[THỰC TẾ]]","v":12800},{"$f":"K6-O6/100","v":14499.99},{"$f":"_xlfn.RANK.AVG(M6,$M$6:$M$15)","v":1},1,{"$f":"INDEX(TBL_RankingData,MATCH(O6,$N$6:$N$15,0),1)","v":"Tiếp khách"}]
[null,{"$f":"P7","v":"Trang phục"},{"$f":"VLOOKUP(TBL_Summary[[#This Row],[DANH MỤC]],TBL_RankingData,2,FALSE)","v":{"v":4000,"d":"4,000 ₫"}},{"$f":"IF(VLOOKUP(TBL_Summary[[#This Row],[DANH MỤC]],TBL_RankingData,3,FALSE)=0,\"\",VLOOKUP(TBL_Summary[[#This Row],[DANH MỤC]],TBL_RankingData,3,FALSE))","v":{"v":2900,"d":"2,900 ₫"}},{"$f":"IF(OR(TBL_Summary[[#This Row],[CHI PHÍ ƯỚC TÍNH]]=\"\",TBL_Summary[[#This Row],[CHI PHÍ THỰC TẾ]]=\"\"),\"\",TBL_Summary[[#This Row],[CHI PHÍ ƯỚC TÍNH]]-TBL_Summary[[#This Row],[CHI PHÍ THỰC TẾ]])","v":{"v":1100,"d":"1,100 ₫"}},{"$f":"TBL_Summary[[#This Row],[CHI PHÍ ƯỚC TÍNH]]/SUM(TBL_Summary[CHI PHÍ ƯỚC TÍNH])","v":{"v":0.13445378151260504,"d":"13.4%"}},{"$nulls":3},"Trang phục",{"$f":"TBL_Attire[[#Totals],[ƯỚC TÍNH]]","v":4000},{"$f":"TBL_Attire[[#Totals],[THỰC TẾ]]","v":2900},{"$f":"K7-O7/100","v":3999.98},2,2,"Trang phục"]
[null,"Hoa và đồ trang trí",{"$f":"VLOOKUP(TBL_Summary[[#This Row],[DANH MỤC]],TBL_RankingData,2,FALSE)","v":{"v":3000,"d":"3,000 ₫"}},{"$f":"IF(VLOOKUP(TBL_Summary[[#This Row],[DANH MỤC]],TBL_RankingData,3,FALSE)=0,\"\",VLOOKUP(TBL_Summary[[#This Row],[DANH MỤC]],TBL_RankingData,3,FALSE))","v":""},{"$f":"IF(OR(TBL_Summary[[#This Row],[CHI PHÍ ƯỚC TÍNH]]=\"\",TBL_Summary[[#This Row],[CHI PHÍ THỰC TẾ]]=\"\"),\"\",TBL_Summary[[#This Row],[CHI PHÍ ƯỚC TÍNH]]-TBL_Summary[[#This Row],[CHI PHÍ THỰC TẾ]])","v":""},{"$f":"TBL_Summary[[#This Row],[CHI PHÍ ƯỚC TÍNH]]/SUM(TBL_Summary[CHI PHÍ ƯỚC TÍNH])","v":{"v":0.10084033613445378,"d":"10.1%"}},{"$nulls":3},"Hoa và đồ trang trí",{"$f":"TBL_FlowersAndDecor[[#Totals],[ƯỚC TÍNH]]","v":3000},{"$f":"TBL_FlowersAndDecor[[#Totals],[THỰC TẾ]]","v":0},2999.97,3,3,"Hoa và đồ trang trí"]
[null,"Chụp ảnh và quay phim",{"$f":"VLOOKUP(TBL_Summary[[#This Row],[DANH MỤC]],TBL_RankingData,2,FALSE)","v":{"v":2500,"d":"2,500 ₫"}},{"$f":"IF(VLOOKUP(TBL_Summary[[#This Row],[DANH MỤC]],TBL_RankingData,3,FALSE)=0,\"\",VLOOKUP(TBL_Summary[[#This Row],[DANH MỤC]],TBL_RankingData,3,FALSE))","v":""},{"$f":"IF(OR(TBL_Summary[[#This Row],[CHI PHÍ ƯỚC TÍNH]]=\"\",TBL_Summary[[#This Row],[CHI PHÍ THỰC TẾ]]=\"\"),\"\",TBL_Summary[[#This Row],[CHI PHÍ ƯỚC TÍNH]]-TBL_Summary[[#This Row],[CHI PHÍ THỰC TẾ]])","v":""},{"$f":"TBL_Summary[[#This Row],[CHI PHÍ ƯỚC TÍNH]]/SUM(TBL_Summary[CHI PHÍ ƯỚC TÍNH])","v":{"v":0.08403361344537816,"d":"8.4%"}},{"$nulls":3},"Âm nhạc",{"$f":"TBL_Music[[#Totals],[ƯỚC TÍNH]]","v":1800},{"$f":"TBL_Music[[#Totals],[THỰC TẾ]]","v":0},1799.96,5,4,"Chụp ảnh và quay phim"]
[null,"Âm nhạc",{"$f":"VLOOKUP(TBL_Summary[[#This Row],[DANH MỤC]],TBL_RankingData,2,FALSE)","v":{"v":1800,"d":"1,800 ₫"}},{"$f":"IF(VLOOKUP(TBL_Summary[[#This Row],[DANH MỤC]],TBL_RankingData,3,FALSE)=0,\"\",VLOOKUP(TBL_Summary[[#This Row],[DANH MỤC]],TBL_RankingData,3,FALSE))","v":""},{"$f":"IF(OR(TBL_Summary[[#This Row],[CHI PHÍ ƯỚC TÍNH]]=\"\",TBL_Summary[[#This Row],[CHI PHÍ THỰC TẾ]]=\"\"),\"\",TBL_Summary[[#This Row],[CHI PHÍ ƯỚC TÍNH]]-TBL_Summary[[#This Row],[CHI PHÍ THỰC TẾ]])","v":""},{"$f":"TBL_Summary[[#This Row],[CHI PHÍ ƯỚC TÍNH]]/SUM(TBL_Summary[CHI PHÍ ƯỚC TÍNH])","v":{"v":0.06050420168067227,"d":"6.1%"}},{"$nulls":3},"Chụp ảnh và quay phim",{"$f":"TBL_PhotographsAndVideo[[#Totals],[ƯỚC TÍNH]]","v":2500},{"$f":"TBL_PhotographsAndVideo[[#Totals],[THỰC TẾ]]","v":0},2499.95,4,5,"Âm nhạc"]
[null,"Quà tặng",{"$f":"VLOOKUP(TBL_Summary[[#This Row],[DANH MỤC]],TBL_RankingData,2,FALSE)","v":{"v":1100,"d":"1,100 ₫"}},{"$f":"IF(VLOOKUP(TBL_Summary[[#This Row],[DANH MỤC]],TBL_RankingData,3,FALSE)=0,\"\",VLOOKUP(TBL_Summary[[#This Row],[DANH MỤC]],TBL_RankingData,3,FALSE))","v":""},{"$f":"IF(OR(TBL_Summary[[#This Row],[CHI PHÍ ƯỚC TÍNH]]=\"\",TBL_Summary[[#This Row],[CHI PHÍ THỰC TẾ]]=\"\"),\"\",TBL_Summary[[#This Row],[CHI PHÍ ƯỚC TÍNH]]-TBL_Summary[[#This Row],[CHI PHÍ THỰC TẾ]])","v":""},{"$f":"TBL_Summary[[#This Row],[CHI PHÍ ƯỚC TÍNH]]/SUM(TBL_Summary[CHI PHÍ ƯỚC TÍNH])","v":{"v":0.03697478991596639,"d":"3.7%"}},{"$nulls":3},"Quà tặng",{"$f":"TBL_FavorsAndGifts[[#Totals],[ƯỚC TÍNH]]","v":1100},{"$f":"TBL_FavorsAndGifts[[#Totals],[THỰC TẾ]]","v":0},1099.94,6,6,"Quà tặng"]
[null,{"$f":"P12","v":"Nhẫn cưới"},{"$f":"VLOOKUP(TBL_Summary[[#This Row],[DANH MỤC]],TBL_RankingData,2,FALSE)","v":{"v":1100,"d":"1,100 ₫"}},{"$f":"IF(VLOOKUP(TBL_Summary[[#This Row],[DANH MỤC]],TBL_RankingData,3,FALSE)=0,\"\",VLOOKUP(TBL_Summary[[#This Row],[DANH MỤC]],TBL_RankingData,3,FALSE))","v":""},{"$f":"IF(OR(TBL_Summary[[#This Row],[CHI PHÍ ƯỚC TÍNH]]=\"\",TBL_Summary[[#This Row],[CHI PHÍ THỰC TẾ]]=\"\"),\"\",TBL_Summary[[#This Row],[CHI PHÍ ƯỚC TÍNH]]-TBL_Summary[[#This Row],[CHI PHÍ THỰC TẾ]])","v":""},{"$f":"TBL_Summary[[#This Row],[CHI PHÍ ƯỚC TÍNH]]/SUM(TBL_Summary[CHI PHÍ ƯỚC TÍNH])","v":{"v":0.03697478991596639,"d":"3.7%"}},{"$nulls":3},"Hoa nghi lễ",{"$f":"TBL_Ceremony[[#Totals],[ƯỚC TÍNH]]","v":800},{"$f":"TBL_Ceremony[[#Totals],[THỰC TẾ]]","v":0},799.93,8,7,"Nhẫn cưới"]
[null,"Hoa nghi lễ",{"$f":"VLOOKUP(TBL_Summary[[#This Row],[DANH MỤC]],TBL_RankingData,2,FALSE)","v":{"v":800,"d":"800 ₫"}},{"$f":"IF(VLOOKUP(TBL_Summary[[#This Row],[DANH MỤC]],TBL_RankingData,3,FALSE)=0,\"\",VLOOKUP(TBL_Summary[[#This Row],[DANH MỤC]],TBL_RankingData,3,FALSE))","v":""},{"$f":"IF(OR(TBL_Summary[[#This Row],[CHI PHÍ ƯỚC TÍNH]]=\"\",TBL_Summary[[#This Row],[CHI PHÍ THỰC TẾ]]=\"\"),\"\",TBL_Summary[[#This Row],[CHI PHÍ ƯỚC TÍNH]]-TBL_Summary[[#This Row],[CHI PHÍ THỰC TẾ]])","v":""},{"$f":"TBL_Summary[[#This Row],[CHI PHÍ ƯỚC TÍNH]]/SUM(TBL_Summary[CHI PHÍ ƯỚC TÍNH])","v":{"v":0.02689075630252101,"d":"2.7%"}},{"$nulls":3},"Văn phòng phẩm",{"$f":"TBL_Stationery[[#Totals],[ƯỚC TÍNH]]","v":500},{"$f":"TBL_Stationery[[#Totals],[THỰC TẾ]]","v":0},499.92,9,8,"Hoa nghi lễ"]
[null,"Văn phòng phẩm",{"$f":"VLOOKUP(TBL_Summary[[#This Row],[DANH MỤC]],TBL_RankingData,2,FALSE)","v":{"v":500,"d":"500 ₫"}},{"$f":"IF(VLOOKUP(TBL_Summary[[#This Row],[DANH MỤC]],TBL_RankingData,3,FALSE)=0,\"\",VLOOKUP(TBL_Summary[[#This Row],[DANH MỤC]],TBL_RankingData,3,FALSE))","v":""},{"$f":"IF(OR(TBL_Summary[[#This Row],[CHI PHÍ ƯỚC TÍNH]]=\"\",TBL_Summary[[#This Row],[CHI PHÍ THỰC TẾ]]=\"\"),\"\",TBL_Summary[[#This Row],[CHI PHÍ ƯỚC TÍNH]]-TBL_Summary[[#This Row],[CHI PHÍ THỰC TẾ]])","v":""},{"$f":"TBL_Summary[[#This Row],[CHI PHÍ ƯỚC TÍNH]]/SUM(TBL_Summary[CHI PHÍ ƯỚC TÍNH])","v":{"v":0.01680672268907563,"d":"1.7%"}},{"$nulls":3},"Nhẫn cưới",{"$f":"TBL_WeddingRings[[#Totals],[ƯỚC TÍNH]]","v":1100},{"$f":"TBL_WeddingRings[[#Totals],[THỰC TẾ]]","v":0},1099.91,7,9,"Văn phòng phẩm"]
[null,"Đi lại",{"$f":"VLOOKUP(TBL_Summary[[#This Row],[DANH MỤC]],TBL_RankingData,2,FALSE)","v":{"v":450,"d":"450 ₫"}},{"$f":"IF(VLOOKUP(TBL_Summary[[#This Row],[DANH MỤC]],TBL_RankingData,3,FALSE)=0,\"\",VLOOKUP(TBL_Summary[[#This Row],[DANH MỤC]],TBL_RankingData,3,FALSE))","v":""},{"$f":"IF(OR(TBL_Summary[[#This Row],[CHI PHÍ ƯỚC TÍNH]]=\"\",TBL_Summary[[#This Row],[CHI PHÍ THỰC TẾ]]=\"\"),\"\",TBL_Summary[[#This Row],[CHI PHÍ ƯỚC TÍNH]]-TBL_Summary[[#This Row],[CHI PHÍ THỰC TẾ]])","v":""},{"$f":"TBL_Summary[[#This Row],[CHI PHÍ ƯỚC TÍNH]]/SUM(TBL_Summary[CHI PHÍ ƯỚC TÍNH])","v":{"v":0.015126050420168067,"d":"1.5%"}},{"$nulls":3},"Đi lại",{"$f":"TBL_Transportation[[#Totals],[ƯỚC TÍNH]]","v":450},{"$f":"TBL_Transportation[[#Totals],[THỰC TẾ]]","v":0},449.9,10,10,"Đi lại"]
[null,"Tổng",{"$f":"SUBTOTAL(109,TBL_Summary[CHI PHÍ ƯỚC TÍNH])","v":{"v":29750,"d":"29,750 ₫"}},{"$f":"SUBTOTAL(109,TBL_Summary[CHI PHÍ THỰC TẾ])","v":{"v":15700,"d":"15,700 ₫"}},{"$f":"TBL_Summary[[#Totals],[CHI PHÍ ƯỚC TÍNH]]-TBL_Summary[[#Totals],[CHI PHÍ THỰC TẾ]]","v":{"v":14050,"d":"14,050 ₫"}},{"$f":"SUBTOTAL(109,TBL_Summary[% NGÂN SÁCH])","v":{"v":1,"d":"100%"}}]

{"sheet":"Chi tiết ngân sách","index":1,"n_rows":91,"n_cols":6,"rows_kept":91}
[{"$nulls":5}," "]
[null,"CHI TIẾT NGÂN SÁCH"]
[]
[null,"TIẾP KHÁCH","ƯỚC TÍNH","THỰC TẾ","CHÊNH LỆCH"]
[null,"Địa điểm và tiền thuê",{"v":8000,"d":"8,000.00 ₫"},{"v":7800,"d":"7,800.00 ₫"},{"$f":"IF(OR(TBL_Reception[[#This Row],[ƯỚC TÍNH]]=\"\",TBL_Reception[[#This Row],[THỰC TẾ]]=\"\"),\"\",TBL_Reception[[#This Row],[ƯỚC TÍNH]]-TBL_Reception[[#This Row],[THỰC TẾ]])","v":{"v":200,"d":"200.00 ₫"}}]
[null,"Thực phẩm và dịch vụ",{"v":4000,"d":"4,000.00 ₫"},{"v":4200,"d":"4,200.00 ₫"},{"$f":"IF(OR(TBL_Reception[[#This Row],[ƯỚC TÍNH]]=\"\",TBL_Reception[[#This Row],[THỰC TẾ]]=\"\"),\"\",TBL_Reception[[#This Row],[ƯỚC TÍNH]]-TBL_Reception[[#This Row],[THỰC TẾ]])","v":{"v":-200,"d":"-200.00 ₫"}}]
[null,"Đồ uống",{"v":1000,"d":"1,000.00 ₫"},{"v":800,"d":"800.00 ₫"},{"$f":"IF(OR(TBL_Reception[[#This Row],[ƯỚC TÍNH]]=\"\",TBL_Reception[[#This Row],[THỰC TẾ]]=\"\"),\"\",TBL_Reception[[#This Row],[ƯỚC TÍNH]]-TBL_Reception[[#This Row],[THỰC TẾ]])","v":{"v":200,"d":"200.00 ₫"}}]
[null,"Bánh ngọt",{"v":1000,"d":"1,000.00 ₫"},null,{"$f":"IF(OR(TBL_Reception[[#This Row],[ƯỚC TÍNH]]=\"\",TBL_Reception[[#This Row],[THỰC TẾ]]=\"\"),\"\",TBL_Reception[[#This Row],[ƯỚC TÍNH]]-TBL_Reception[[#This Row],[THỰC TẾ]])","v":""}]
[null,"Chi phí khác",{"v":500,"d":"500.00 ₫"},null,{"$f":"IF(OR(TBL_Reception[[#This Row],[ƯỚC TÍNH]]=\"\",TBL_Reception[[#This Row],[THỰC TẾ]]=\"\"),\"\",TBL_Reception[[#This Row],[ƯỚC TÍNH]]-TBL_Reception[[#This Row],[THỰC TẾ]])","v":""}]
[null,"TỔNG CHI PHÍ TIẾP KHÁCH",{"$f":"SUBTOTAL(109,TBL_Reception[ƯỚC TÍNH])","v":{"v":14500,"d":"14,500.00 ₫"}},{"$f":"SUBTOTAL(109,TBL_Reception[THỰC TẾ])","v":{"v":12800,"d":"12,800.00 ₫"}},{"$f":"TBL_Reception[[#Totals],[ƯỚC TÍNH]]-TBL_Reception[[#Totals],[THỰC TẾ]]","v":{"v":1700,"d":"1,700.00 ₫"}}]
[]
[]
[null,"TRANG PHỤC","ƯỚC TÍNH","THỰC TẾ","CHÊNH LỆCH"]
[null,"Áo khoác ngoài, bộ com-lê và/hoặc váy",{"v":3000,"d":"3,000.00 ₫"},{"v":2900,"d":"2,900.00 ₫"},{"$f":"IF(OR(TBL_Attire[[#This Row],[ƯỚC TÍNH]]=\"\",TBL_Attire[[#This Row],[THỰC TẾ]]=\"\"),\"\",TBL_Attire[[#This Row],[ƯỚC TÍNH]]-TBL_Attire[[#This Row],[THỰC TẾ]])","v":{"v":100,"d":"100.00 ₫"}}]
[null,"Thay đổi",{"v":100,"d":"100.00 ₫"},null,{"$f":"IF(OR(TBL_Attire[[#This Row],[ƯỚC TÍNH]]=\"\",TBL_Attire[[#This Row],[THỰC TẾ]]=\"\"),\"\",TBL_Attire[[#This Row],[ƯỚC TÍNH]]-TBL_Attire[[#This Row],[THỰC TẾ]])","v":""}]
[null,"Vòng và khăn đội đầu cô dâu",{"v":200,"d":"200.00 ₫"},null,{"$f":"IF(OR(TBL_Attire[[#This Row],[ƯỚC TÍNH]]=\"\",TBL_Attire[[#This Row],[THỰC TẾ]]=\"\"),\"\",TBL_Attire[[#This Row],[ƯỚC TÍNH]]-TBL_Attire[[#This Row],[THỰC TẾ]])","v":""}]
[null,"Phụ kiện",{"v":100,"d":"100.00 ₫"},null,{"$f":"IF(OR(TBL_Attire[[#This Row],[ƯỚC TÍNH]]=\"\",TBL_Attire[[#This Row],[THỰC TẾ]]=\"\"),\"\",TBL_Attire[[#This Row],[ƯỚC TÍNH]]-TBL_Attire[[#This Row],[THỰC TẾ]])","v":""}]
[null,"Tóc và trang điểm",{"v":500,"d":"500.00 ₫"},null,{"$f":"IF(OR(TBL_Attire[[#This Row],[ƯỚC TÍNH]]=\"\",TBL_Attire[[#This Row],[THỰC TẾ]]=\"\"),\"\",TBL_Attire[[#This Row],[ƯỚC TÍNH]]-TBL_Attire[[#This Row],[THỰC TẾ]])","v":""}]
[null,"Chi phí khác",{"v":100,"d":"100.00 ₫"},null,{"$f":"IF(OR(TBL_Attire[[#This Row],[ƯỚC TÍNH]]=\"\",TBL_Attire[[#This Row],[THỰC TẾ]]=\"\"),\"\",TBL_Attire[[#This Row],[ƯỚC TÍNH]]-TBL_Attire[[#This Row],[THỰC TẾ]])","v":""}]
[null,"TỔNG CHI PHÍ TRANG PHỤC",{"$f":"SUBTOTAL(109,TBL_Attire[ƯỚC TÍNH])","v":{"v":4000,"d":"4,000.00 ₫"}},{"$f":"SUBTOTAL(109,TBL_Attire[THỰC TẾ])","v":{"v":2900,"d":"2,900.00 ₫"}},{"$f":"TBL_Attire[[#Totals],[ƯỚC TÍNH]]-TBL_Attire[[#Totals],[THỰC TẾ]]","v":{"v":1100,"d":"1,100.00 ₫"}}]
[]
[]
[null,"HOA & ĐỒ TRANG TRÍ","ƯỚC TÍNH","THỰC TẾ","CHÊNH LỆCH"]
[null,"Cắm hoa cho buổi lễ",{"v":1000,"d":"1,000.00 ₫"},null,{"$f":"IF(OR(TBL_FlowersAndDecor[[#This Row],[ƯỚC TÍNH]]=\"\",TBL_FlowersAndDecor[[#This Row],[THỰC TẾ]]=\"\"),\"\",TBL_FlowersAndDecor[[#This Row],[ƯỚC TÍNH]]-TBL_FlowersAndDecor[[#This Row],[THỰC TẾ]])","v":""}]
[null,"Giỏ hoa và hoa cho phù dâu nhí",{"v":500,"d":"500.00 ₫"},null,{"$f":"IF(OR(TBL_FlowersAndDecor[[#This Row],[ƯỚC TÍNH]]=\"\",TBL_FlowersAndDecor[[#This Row],[THỰC TẾ]]=\"\"),\"\",TBL_FlowersAndDecor[[#This Row],[ƯỚC TÍNH]]-TBL_FlowersAndDecor[[#This Row],[THỰC TẾ]])","v":""}]
[null,"Gối buộc nhẫn",{"v":100,"d":"100.00 ₫"},null,{"$f":"IF(OR(TBL_FlowersAndDecor[[#This Row],[ƯỚC TÍNH]]=\"\",TBL_FlowersAndDecor[[#This Row],[THỰC TẾ]]=\"\"),\"\",TBL_FlowersAndDecor[[#This Row],[ƯỚC TÍNH]]-TBL_FlowersAndDecor[[#This Row],[THỰC TẾ]])","v":""}]
[null,"Hoa cô dâu",{"v":500,"d":"500.00 ₫"},null,{"$f":"IF(OR(TBL_FlowersAndDecor[[#This Row],[ƯỚC TÍNH]]=\"\",TBL_FlowersAndDecor[[#This Row],[THỰC TẾ]]=\"\"),\"\",TBL_FlowersAndDecor[[#This Row],[ƯỚC TÍNH]]-TBL_FlowersAndDecor[[#This Row],[THỰC TẾ]])","v":""}]
[null,"Hoa cài ngực",{"v":100,"d":"100.00 ₫"},null,{"$f":"IF(OR(TBL_FlowersAndDecor[[#This Row],[ƯỚC TÍNH]]=\"\",TBL_FlowersAndDecor[[#This Row],[THỰC TẾ]]=\"\"),\"\",TBL_FlowersAndDecor[[#This Row],[ƯỚC TÍNH]]-TBL_FlowersAndDecor[[#This Row],[THỰC TẾ]])","v":""}]
[null,"Hoa đeo tay",{"v":200,"d":"200.00 ₫"},null,{"$f":"IF(OR(TBL_FlowersAndDecor[[#This Row],[ƯỚC TÍNH]]=\"\",TBL_FlowersAndDecor[[#This Row],[THỰC TẾ]]=\"\"),\"\",TBL_FlowersAndDecor[[#This Row],[ƯỚC TÍNH]]-TBL_FlowersAndDecor[[#This Row],[THỰC TẾ]])","v":""}]
[null,"Trang trí nơi tiếp đón khách",{"v":300,"d":"300.00 ₫"},null,{"$f":"IF(OR(TBL_FlowersAndDecor[[#This Row],[ƯỚC TÍNH]]=\"\",TBL_FlowersAndDecor[[#This Row],[THỰC TẾ]]=\"\"),\"\",TBL_FlowersAndDecor[[#This Row],[ƯỚC TÍNH]]-TBL_FlowersAndDecor[[#This Row],[THỰC TẾ]])","v":""}]
[null,"Ánh sáng",{"v":200,"d":"200.00 ₫"},null,{"$f":"IF(OR(TBL_FlowersAndDecor[[#This Row],[ƯỚC TÍNH]]=\"\",TBL_FlowersAndDecor[[#This Row],[THỰC TẾ]]=\"\"),\"\",TBL_FlowersAndDecor[[#This Row],[ƯỚC TÍNH]]-TBL_FlowersAndDecor[[#This Row],[THỰC TẾ]])","v":""}]
[null,"Chi phí khác",{"v":100,"d":"100.00 ₫"},null,{"$f":"IF(OR(TBL_FlowersAndDecor[[#This Row],[ƯỚC TÍNH]]=\"\",TBL_FlowersAndDecor[[#This Row],[THỰC TẾ]]=\"\"),\"\",TBL_FlowersAndDecor[[#This Row],[ƯỚC TÍNH]]-TBL_FlowersAndDecor[[#This Row],[THỰC TẾ]])","v":""}]
[null,"TỔNG CHI PHÍ HOA & ĐỒ TRANG TRÍ",{"$f":"SUBTOTAL(109,TBL_FlowersAndDecor[ƯỚC TÍNH])","v":{"v":3000,"d":"3,000.00 ₫"}},{"$f":"SUBTOTAL(109,TBL_FlowersAndDecor[THỰC TẾ])","v":{"v":0,"d":"0.00 ₫"}},{"$f":"TBL_FlowersAndDecor[[#Totals],[ƯỚC TÍNH]]-TBL_FlowersAndDecor[[#Totals],[THỰC TẾ]]","v":{"v":3000,"d":"3,000.00 ₫"}}]
[]
[]
[null,"ÂM NHẠC","ƯỚC TÍNH","THỰC TẾ","CHÊNH LỆCH"]
[null,"Nhạc công buổi lễ",{"v":700,"d":"700.00 ₫"},null,{"$f":"IF(OR(TBL_Music[[#This Row],[ƯỚC TÍNH]]=\"\",TBL_Music[[#This Row],[THỰC TẾ]]=\"\"),\"\",TBL_Music[[#This Row],[ƯỚC TÍNH]]-TBL_Music[[#This Row],[THỰC TẾ]])","v":""}]
[null,"Nhạc công tiệc cocktail",{"v":300,"d":"300.00 ₫"},null,{"$f":"IF(OR(TBL_Music[[#This Row],[ƯỚC TÍNH]]=\"\",TBL_Music[[#This Row],[THỰC TẾ]]=\"\"),\"\",TBL_Music[[#This Row],[ƯỚC TÍNH]]-TBL_Music[[#This Row],[THỰC TẾ]])","v":""}]
[null,"Ban nhạc, DJ hoặc giải trí khi tiếp đón khách",{"v":200,"d":"200.00 ₫"},null,{"$f":"IF(OR(TBL_Music[[#This Row],[ƯỚC TÍNH]]=\"\",TBL_Music[[#This Row],[THỰC TẾ]]=\"\"),\"\",TBL_Music[[#This Row],[ƯỚC TÍNH]]-TBL_Music[[#This Row],[THỰC TẾ]])","v":""}]
[null,"Tiền thuê hệ thống âm thanh hoặc sàn nhảy",{"v":400,"d":"400.00 ₫"},null,{"$f":"IF(OR(TBL_Music[[#This Row],[ƯỚC TÍNH]]=\"\",TBL_Music[[#This Row],[THỰC TẾ]]=\"\"),\"\",TBL_Music[[#This Row],[ƯỚC TÍNH]]-TBL_Music[[#This Row],[THỰC TẾ]])","v":""}]
[null,"Chi phí khác",{"v":200,"d":"200.00 ₫"},null,{"$f":"IF(OR(TBL_Music[[#This Row],[ƯỚC TÍNH]]=\"\",TBL_Music[[#This Row],[THỰC TẾ]]=\"\"),\"\",TBL_Music[[#This Row],[ƯỚC TÍNH]]-TBL_Music[[#This Row],[THỰC TẾ]])","v":""}]
[null,"TỔNG CHI PHÍ ÂM NHẠC",{"$f":"SUBTOTAL(109,TBL_Music[ƯỚC TÍNH])","v":{"v":1800,"d":"1,800.00 ₫"}},{"$f":"SUBTOTAL(109,TBL_Music[THỰC TẾ])","v":{"v":0,"d":"0.00 ₫"}},{"$f":"TBL_Music[[#Totals],[ƯỚC TÍNH]]-TBL_Music[[#Totals],[THỰC TẾ]]","v":{"v":1800,"d":"1,800.00 ₫"}}]
[]
[]
[null,"NHIẾP ẢNH & QUAY PHIM","ƯỚC TÍNH","THỰC TẾ","CHÊNH LỆCH"]
[null,"Nhiếp ảnh",{"v":1000,"d":"1,000.00 ₫"},null,{"$f":"IF(OR(TBL_PhotographsAndVideo[[#This Row],[ƯỚC TÍNH]]=\"\",TBL_PhotographsAndVideo[[#This Row],[THỰC TẾ]]=\"\"),\"\",TBL_PhotographsAndVideo[[#This Row],[ƯỚC TÍNH]]-TBL_PhotographsAndVideo[[#This Row],[THỰC TẾ]])","v":""}]
[null,"Quay phim",{"v":800,"d":"800.00 ₫"},null,{"$f":"IF(OR(TBL_PhotographsAndVideo[[#This Row],[ƯỚC TÍNH]]=\"\",TBL_PhotographsAndVideo[[#This Row],[THỰC TẾ]]=\"\"),\"\",TBL_PhotographsAndVideo[[#This Row],[ƯỚC TÍNH]]-TBL_PhotographsAndVideo[[#This Row],[THỰC TẾ]])","v":""}]
[null,"Bản in và album bổ sung",{"v":500,"d":"500.00 ₫"},null,{"$f":"IF(OR(TBL_PhotographsAndVideo[[#This Row],[ƯỚC TÍNH]]=\"\",TBL_PhotographsAndVideo[[#This Row],[THỰC TẾ]]=\"\"),\"\",TBL_PhotographsAndVideo[[#This Row],[ƯỚC TÍNH]]-TBL_PhotographsAndVideo[[#This Row],[THỰC TẾ]])","v":""}]
[null,"Chi phí khác",{"v":200,"d":"200.00 ₫"},null,{"$f":"IF(OR(TBL_PhotographsAndVideo[[#This Row],[ƯỚC TÍNH]]=\"\",TBL_PhotographsAndVideo[[#This Row],[THỰC TẾ]]=\"\"),\"\",TBL_PhotographsAndVideo[[#This Row],[ƯỚC TÍNH]]-TBL_PhotographsAndVideo[[#This Row],[THỰC TẾ]])","v":""}]
[null,"TỔNG CHI PHÍ NHIẾP ẢNH & QUAY PHIM",{"$f":"SUBTOTAL(109,TBL_PhotographsAndVideo[ƯỚC TÍNH])","v":{"v":2500,"d":"2,500.00 ₫"}},{"$f":"SUBTOTAL(109,TBL_PhotographsAndVideo[THỰC TẾ])","v":{"v":0,"d":"0.00 ₫"}},{"$f":"TBL_PhotographsAndVideo[[#Totals],[ƯỚC TÍNH]]-TBL_PhotographsAndVideo[[#Totals],[THỰC TẾ]]","v":{"v":2500,"d":"2,500.00 ₫"}}]
[]
[]
[null,"QUÀ TẶNG","ƯỚC TÍNH","THỰC TẾ","CHÊNH LỆCH"]
[null,"Quà tặng chào mừng",{"v":700,"d":"700.00 ₫"},null,{"$f":"IF(OR(TBL_FavorsAndGifts[[#This Row],[ƯỚC TÍNH]]=\"\",TBL_FavorsAndGifts[[#This Row],[THỰC TẾ]]=\"\"),\"\",TBL_FavorsAndGifts[[#This Row],[ƯỚC TÍNH]]-TBL_FavorsAndGifts[[#This Row],[THỰC TẾ]])","v":""}]
[null,"Quà tặng bữa tiệc",{"v":200,"d":"200.00 ₫"},null,{"$f":"IF(OR(TBL_FavorsAndGifts[[#This Row],[ƯỚC TÍNH]]=\"\",TBL_FavorsAndGifts[[#This Row],[THỰC TẾ]]=\"\"),\"\",TBL_FavorsAndGifts[[#This Row],[ƯỚC TÍNH]]-TBL_FavorsAndGifts[[#This Row],[THỰC TẾ]])","v":""}]
[null,"Chi phí khác",{"v":200,"d":"200.00 ₫"},null,{"$f":"IF(OR(TBL_FavorsAndGifts[[#This Row],[ƯỚC TÍNH]]=\"\",TBL_FavorsAndGifts[[#This Row],[THỰC TẾ]]=\"\"),\"\",TBL_FavorsAndGifts[[#This Row],[ƯỚC TÍNH]]-TBL_FavorsAndGifts[[#This Row],[THỰC TẾ]])","v":""}]
[null,"TỔNG CHI PHÍ QUÀ TẶNG",{"$f":"SUBTOTAL(109,TBL_FavorsAndGifts[ƯỚC TÍNH])","v":{"v":1100,"d":"1,100.00 ₫"}},{"$f":"SUBTOTAL(109,TBL_FavorsAndGifts[THỰC TẾ])","v":{"v":0,"d":"0.00 ₫"}},{"$f":"TBL_FavorsAndGifts[[#Totals],[ƯỚC TÍNH]]-TBL_FavorsAndGifts[[#Totals],[THỰC TẾ]]","v":{"v":1100,"d":"1,100.00 ₫"}}]
[]
[]
[null,"NGHI LỄ","ƯỚC TÍNH","THỰC TẾ","CHÊNH LỆCH"]
[null,"Phí địa điểm tổ chức",{"v":500,"d":"500.00 ₫"},null,{"$f":"IF(OR(TBL_Ceremony[[#This Row],[ƯỚC TÍNH]]=\"\",TBL_Ceremony[[#This Row],[THỰC TẾ]]=\"\"),\"\",TBL_Ceremony[[#This Row],[ƯỚC TÍNH]]-TBL_Ceremony[[#This Row],[THỰC TẾ]])","v":""}]
[null,"Phí chính thức hoặc quyên góp nhà thờ",{"v":200,"d":"200.00 ₫"},null,{"$f":"IF(OR(TBL_Ceremony[[#This Row],[ƯỚC TÍNH]]=\"\",TBL_Ceremony[[#This Row],[THỰC TẾ]]=\"\"),\"\",TBL_Ceremony[[#This Row],[ƯỚC TÍNH]]-TBL_Ceremony[[#This Row],[THỰC TẾ]])","v":""}]
[null,"Chi phí khác",{"v":100,"d":"100.00 ₫"},null,{"$f":"IF(OR(TBL_Ceremony[[#This Row],[ƯỚC TÍNH]]=\"\",TBL_Ceremony[[#This Row],[THỰC TẾ]]=\"\"),\"\",TBL_Ceremony[[#This Row],[ƯỚC TÍNH]]-TBL_Ceremony[[#This Row],[THỰC TẾ]])","v":""}]
[null,"TỔNG CHI PHÍ NGHI LỄ",{"$f":"SUBTOTAL(109,TBL_Ceremony[ƯỚC TÍNH])","v":{"v":800,"d":"800.00 ₫"}},{"$f":"SUBTOTAL(109,TBL_Ceremony[THỰC TẾ])","v":{"v":0,"d":"0.00 ₫"}},{"$f":"TBL_Ceremony[[#Totals],[ƯỚC TÍNH]]-TBL_Ceremony[[#Totals],[THỰC TẾ]]","v":{"v":800,"d":"800.00 ₫"}}]
[]
[]
[null,"VĂN PHÒNG PHẨM","ƯỚC TÍNH","THỰC TẾ","CHÊNH LỆCH"]
[null,"Thiệp thông báo trước về thời gian lễ cưới diễn ra",{"v":50,"d":"50.00 ₫"},null,{"$f":"IF(OR(TBL_Stationery[[#This Row],[ƯỚC TÍNH]]=\"\",TBL_Stationery[[#This Row],[THỰC TẾ]]=\"\"),\"\",TBL_Stationery[[#This Row],[ƯỚC TÍNH]]-TBL_Stationery[[#This Row],[THỰC TẾ]])","v":""}]
[null,"Thiệp mời và thiệp xác nhận RSVP",{"v":100,"d":"100.00 ₫"},null,{"$f":"IF(OR(TBL_Stationery[[#This Row],[ƯỚC TÍNH]]=\"\",TBL_Stationery[[#This Row],[THỰC TẾ]]=\"\"),\"\",TBL_Stationery[[#This Row],[ƯỚC TÍNH]]-TBL_Stationery[[#This Row],[THỰC TẾ]])","v":""}]
[null,"Chương trình",{"v":50,"d":"50.00 ₫"},null,{"$f":"IF(OR(TBL_Stationery[[#This Row],[ƯỚC TÍNH]]=\"\",TBL_Stationery[[#This Row],[THỰC TẾ]]=\"\"),\"\",TBL_Stationery[[#This Row],[ƯỚC TÍNH]]-TBL_Stationery[[#This Row],[THỰC TẾ]])","v":""}]
[null,"Thẻ ghi địa điểm và chỗ ngồi",{"v":50,"d":"50.00 ₫"},null,{"$f":"IF(OR(TBL_Stationery[[#This Row],[ƯỚC TÍNH]]=\"\",TBL_Stationery[[#This Row],[THỰC TẾ]]=\"\"),\"\",TBL_Stationery[[#This Row],[ƯỚC TÍNH]]-TBL_Stationery[[#This Row],[THỰC TẾ]])","v":""}]
[null,"Thẻ thực đơn",{"v":50,"d":"50.00 ₫"},null,{"$f":"IF(OR(TBL_Stationery[[#This Row],[ƯỚC TÍNH]]=\"\",TBL_Stationery[[#This Row],[THỰC TẾ]]=\"\"),\"\",TBL_Stationery[[#This Row],[ƯỚC TÍNH]]-TBL_Stationery[[#This Row],[THỰC TẾ]])","v":""}]
[null,"Thiệp cảm ơn",{"v":50,"d":"50.00 ₫"},null,{"$f":"IF(OR(TBL_Stationery[[#This Row],[ƯỚC TÍNH]]=\"\",TBL_Stationery[[#This Row],[THỰC TẾ]]=\"\"),\"\",TBL_Stationery[[#This Row],[ƯỚC TÍNH]]-TBL_Stationery[[#This Row],[THỰC TẾ]])","v":""}]
[null,"Bưu phí",{"v":50,"d":"50.00 ₫"},null,{"$f":"IF(OR(TBL_Stationery[[#This Row],[ƯỚC TÍNH]]=\"\",TBL_Stationery[[#This Row],[THỰC TẾ]]=\"\"),\"\",TBL_Stationery[[#This Row],[ƯỚC TÍNH]]-TBL_Stationery[[#This Row],[THỰC TẾ]])","v":""}]
[null,"Chi phí khác",{"v":100,"d":"100.00 ₫"},null,{"$f":"IF(OR(TBL_Stationery[[#This Row],[ƯỚC TÍNH]]=\"\",TBL_Stationery[[#This Row],[THỰC TẾ]]=\"\"),\"\",TBL_Stationery[[#This Row],[ƯỚC TÍNH]]-TBL_Stationery[[#This Row],[THỰC TẾ]])","v":""}]
[null,"TỔNG CHI PHÍ VĂN PHÒNG PHẨM",{"$f":"SUBTOTAL(109,TBL_Stationery[ƯỚC TÍNH])","v":{"v":500,"d":"500.00 ₫"}},{"$f":"SUBTOTAL(109,TBL_Stationery[THỰC TẾ])","v":{"v":0,"d":"0.00 ₫"}},{"$f":"TBL_Stationery[[#Totals],[ƯỚC TÍNH]]-TBL_Stationery[[#Totals],[THỰC TẾ]]","v":{"v":500,"d":"500.00 ₫"}}]
[]
[]
[null,"NHẪN CƯỚI","ƯỚC TÍNH","THỰC TẾ","CHÊNH LỆCH"]
[null,"Nhẫn cưới",{"v":1000,"d":"1,000.00 ₫"},null,{"$f":"IF(OR(TBL_WeddingRings[[#This Row],[ƯỚC TÍNH]]=\"\",TBL_WeddingRings[[#This Row],[THỰC TẾ]]=\"\"),\"\",TBL_WeddingRings[[#This Row],[ƯỚC TÍNH]]-TBL_WeddingRings[[#This Row],[THỰC TẾ]])","v":""}]
[null,"Phụ kiện nhẫn",{"v":100,"d":"100.00 ₫"},null,{"$f":"IF(OR(TBL_WeddingRings[[#This Row],[ƯỚC TÍNH]]=\"\",TBL_WeddingRings[[#This Row],[THỰC TẾ]]=\"\"),\"\",TBL_WeddingRings[[#This Row],[ƯỚC TÍNH]]-TBL_WeddingRings[[#This Row],[THỰC TẾ]])","v":""}]
[null,"TỔNG CHI PHÍ NHẪN CƯỚI",{"$f":"SUBTOTAL(109,TBL_WeddingRings[ƯỚC TÍNH])","v":{"v":1100,"d":"1,100.00 ₫"}},{"$f":"SUBTOTAL(109,TBL_WeddingRings[THỰC TẾ])","v":{"v":0,"d":"0.00 ₫"}},{"$f":"TBL_WeddingRings[[#Totals],[ƯỚC TÍNH]]-TBL_WeddingRings[[#Totals],[THỰC TẾ]]","v":{"v":1100,"d":"1,100.00 ₫"}}]
[]
[]
[null,"ĐI LẠI  ","ƯỚC TÍNH","THỰC TẾ","CHÊNH LỆCH"]
[null,"Thuê ô tô chính",{"v":100,"d":"100.00 ₫"},null,{"$f":"IF(OR(TBL_Transportation[[#This Row],[ƯỚC TÍNH]]=\"\",TBL_Transportation[[#This Row],[THỰC TẾ]]=\"\"),\"\",TBL_Transportation[[#This Row],[ƯỚC TÍNH]]-TBL_Transportation[[#This Row],[THỰC TẾ]])","v":""}]
[null,"Thuê ô tô cho khách",{"v":100,"d":"100.00 ₫"},null,{"$f":"IF(OR(TBL_Transportation[[#This Row],[ƯỚC TÍNH]]=\"\",TBL_Transportation[[#This Row],[THỰC TẾ]]=\"\"),\"\",TBL_Transportation[[#This Row],[ƯỚC TÍNH]]-TBL_Transportation[[#This Row],[THỰC TẾ]])","v":""}]
[null,"Phương tiện đi lại cho khách ở xa",{"v":100,"d":"100.00 ₫"},null,{"$f":"IF(OR(TBL_Transportation[[#This Row],[ƯỚC TÍNH]]=\"\",TBL_Transportation[[#This Row],[THỰC TẾ]]=\"\"),\"\",TBL_Transportation[[#This Row],[ƯỚC TÍNH]]-TBL_Transportation[[#This Row],[THỰC TẾ]])","v":""}]
[null,"Bãi đỗ xe",{"v":50,"d":"50.00 ₫"},null,{"$f":"IF(OR(TBL_Transportation[[#This Row],[ƯỚC TÍNH]]=\"\",TBL_Transportation[[#This Row],[THỰC TẾ]]=\"\"),\"\",TBL_Transportation[[#This Row],[ƯỚC TÍNH]]-TBL_Transportation[[#This Row],[THỰC TẾ]])","v":""}]
[null,"Chi phí khác",{"v":100,"d":"100.00 ₫"},null,{"$f":"IF(OR(TBL_Transportation[[#This Row],[ƯỚC TÍNH]]=\"\",TBL_Transportation[[#This Row],[THỰC TẾ]]=\"\"),\"\",TBL_Transportation[[#This Row],[ƯỚC TÍNH]]-TBL_Transportation[[#This Row],[THỰC TẾ]])","v":""}]
[null,"TỔNG CHI PHÍ ĐI LẠI",{"$f":"SUBTOTAL(109,TBL_Transportation[ƯỚC TÍNH])","v":{"v":450,"d":"450.00 ₫"}},{"$f":"SUBTOTAL(109,TBL_Transportation[THỰC TẾ])","v":{"v":0,"d":"0.00 ₫"}},{"$f":"TBL_Transportation[[#Totals],[ƯỚC TÍNH]]-TBL_Transportation[[#Totals],[THỰC TẾ]]","v":{"v":450,"d":"450.00 ₫"}}]